[Event "Grand Prix Romania 1st Stage 2024"]
[Site "Bucuresti"]
[Date "2024.03.23"]
[Round "2.25"]
[White "Tamas, Christian-Arrydan"]
[Black "Castellanos Rodriguez, Renier"]
[Result "0-1"]
[ECO "E62"]
[WhiteElo "2054"]
[BlackElo "2469"]
[Annotator "TA"]
[PlyCount "94"]
[EventDate "2024.03.20"]
[EventType "swiss"]
[EventCountry "ROU"]
[SourceTitle "playchess.com"]
[Source "ChessBase"]
[SourceQuality "1"]
[TimeControl "900+5"]

{[%evp 17,94,27,38,-3,20,0,16,9,26,20,22,-6,20,14,14,3,18,0,27,-47,-41,-70,-62,-60,-52,-74,-61,-55,-68,-65,-33,-36,0,0,0,-9,-8,-83,-91,-110,-100,-103,-88,-83,-83,-109,-75,-93,-83,-87,-84,-91,-54,-78,-83,-92,-77,-1045,-1035,-1006,-980,-966,-858,-996,-968,-1193,-1158,-1091,-974,-2498,-2080,-1798,-1649,-3529,-4426,-29955,-9738,-5302,-5010]} 1. d4 {[%emt 0:00:01]} Nf6 {[%emt 0:00:02]} 2. c4 {[%emt 0:00:02]} d6 {[%emt 0:00:13]} 3. Nf3 {[%emt 0:00:02]} g6 {[%emt 0:00:04]} 4. Nc3 {[%emt 0:00:01]} Bf5 {[%emt 0:00:03]} 5. g3 {[%emt 0:00:23]} c6 {[%emt 0:00:03]} 6. Bg2 {[%emt 0:00:03]} Bg7 {[%emt 0:00:02]} 7. O-O {[%emt 0:00:02]} O-O {[%emt 0:00:02]} 8. Re1 {[%emt 0:00:13]} Ne4 {[%emt 0:00:08]} 9. Nxe4 {[%emt 0:02:00]} Bxe4 {[%emt 0:00:02]} 10. Bf4 {[%emt 0:00:02]} Qb6 {[%emt 0:00:18]} 11. Qd2 {[%emt 0:00:47]} Nd7 {[%emt 0:00:46]} 12. Rad1 {[%emt 0:00:06] The position is equal.} Qa6 {[%emt 0:00:08]} 13. b3 {[%emt 0:01:47]} b5 {[%emt 0:00:05]} 14. cxb5 {[%emt 0:00:01]} Qxb5 {[%emt 0:00:11]} 15. Bh6 {[%emt 0:00:49]} a5 {[%emt 0:00:10][%cal Ba7a5,Ba5a4][%mdl 32]} 16. Bxg7 {[%emt 0:00:03]} Kxg7 {[%emt 0:00:01]} 17. Rc1 {[%emt 0:02:23][%cal Of3e5]} a4 {[%emt 0:00:15]} 18. Qc3 {[%emt 0:01:12]} (18. b4 $11) 18... Nf6 {[%emt 0:00:09]} 19. Nd2 {[%emt 0:00:15]} Bxg2 {[%emt 0:00:09]} 20. Kxg2 {[%emt 0:00:02]} axb3 {[%emt 0:00:05]} 21. axb3 {[%emt 0:00:14]} Ra2 {[%emt 0:00:10] Black is more active.} 22. e4 {[%emt 0:01:05] Wards off Nd5} Rfa8 {[%emt 0:01:14]} 23. Rc2 {[%emt 0:00:56]} Rxc2 {[%emt 0:03:54]} 24. Qxc2 {[%emt 0:00:02]} d5 {[%emt 0:00:03]} 25. e5 {[%emt 0:02:57]} Ne8 {[%emt 0:00:02]} 26. Rc1 {[%emt 0:00:29]} Ra6 {[%emt 0:00:14]} 27. Qc5 {[%emt 0:01:02]} (27. Nf3 $11 {remains equal.}) 27... Qxc5 $17 {[%emt 0:01:41]} 28. Rxc5 {[%emt 0:00:02][%mdl 4096] Endgame. KRN-KRN} Nc7 {[%emt 0:00:05]} 29. Rc3 {[%emt 0:00:19]} Nb5 {[%emt 0:00:21]} 30. Rd3 {[%emt 0:00:02]} Ra1 {[%emt 0:00:19]} 31. Kf3 {[%emt 0:00:06]} Rc1 {[%emt 0:00:39]} 32. Ke3 {[%emt 0:00:11]} Kf8 {[%emt 0:00:10]} 33. f4 {[%emt 0:00:02]} Ke8 {[%emt 0:00:01]} 34. Nf3 {[%emt 0:00:14]} f6 {[%emt 0:00:34]} 35. exf6 {[%emt 0:00:00]} exf6 {[%emt 0:00:02]} 36. Ke2 {[%emt 0:00:00]} Kd7 {[%emt 0:00:07]} 37. Rd1 $2 {[%emt 0:00:02][%mdl 8192] [#] Now White is beyond hope.} (37. g4 $17) 37... Nc3+ $19 {[%emt 0:00:05]} 38. Kd2 {[%emt 0:00:04]} Rxd1+ {[%emt 0:00:02]} 39. Kxc3 {[%emt 0:00:01] KR-KN} Rf1 {[%emt 0:00:03]} 40. Nd2 {[%emt 0:00:11]} Rf2 {[%emt 0:00:02]} 41. h3 {[%emt 0:00:07]} Rg2 {[%emt 0:00:03]} 42. g4 {[%emt 0:00:03]} Rg3+ {[%emt 0:00:01]} 43. Kb4 {[%emt 0:00:00]} Rd3 {[%emt 0:00:04]} 44. Nb1 {[%emt 0:00:03]} Kd6 {[%emt 0:00:08]} 45. f5 {[%emt 0:00:07]} g5 {[%emt 0:00:07]} 46. Nc3 {[%emt 0:00:04]} Rxd4+ {[%emt 0:00:04]} 47. Ka5 {[%emt 0:00:01]} Rd3 {[%emt 0:00:02][%csl LRc3,LRh3] Weighted Error Value: White=0.81/Black=0.12 (very precise) .  Loses game:     	White=1     	---        Mistake:       	White=2     	---        Inaccurate:     	White=3     	Black=6      OK:         	White=7     	Black=6      Best:        	White=1     	Black=3} 0-1

[Event "Grand Prix Romania 1st Stage 2024"]
[Site "Bucuresti"]
[Date "2024.03.23"]
[Round "2.26"]
[White "Rozen, Eytan"]
[Black "Busuioc, Stelian-Marian"]
[Result "1-0"]
[ECO "E90"]
[WhiteElo "2487"]
[BlackElo "1843"]
[Annotator "TA"]
[PlyCount "95"]
[EventDate "2024.03.20"]
[EventType "swiss"]
[EventCountry "ROU"]
[SourceTitle "playchess.com"]
[Source "ChessBase"]
[SourceQuality "1"]
[TimeControl "900+5"]

{[%evp 12,95,49,22,37,27,35,30,52,22,25,13,15,0,33,44,100,64,56,0,95,31,163,159,154,157,159,85,67,54,112,105,122,110,156,147,168,128,181,201,297,284,358,265,302,301,470,468,562,592,608,595,629,629,633,622,620,615,615,607,591,575,561,547,513,462,410,392,2102,1462,5469,5306,2534,4133,29983,29984,29987,29987,29987,29988,29988,29989,29989,29990,29992,29993]} 1. d4 {[%emt 0:00:05]} d6 {[%emt 0:00:12]} 2. e4 {[%emt 0:00:07]} g6 {[%emt 0:00:01]} 3. c4 {[%emt 0:00:16]} Bg7 {[%emt 0:00:01]} 4. Nc3 {[%emt 0:00:01]} Nf6 {[%emt 0:00:03]} 5. Nf3 {[%emt 0:00:44]} O-O {[%emt 0:00:01]} 6. Bd3 {[%emt 0:00:02]} Nbd7 {[%emt 0:00:17]} 7. Be3 {[%emt 0:01:04]} e5 {[%emt 0:00:19]} 8. d5 {[%emt 0:00:02]} a5 {[%emt 0:00:23]} 9. Bc2 {[%emt 0:00:07]} b6 {[%emt 0:00:03] White has an edge.} 10. Qe2 {[%emt 0:00:39]} Nc5 {[%emt 0:00:05]} 11. h3 {[%emt 0:00:53]} Nh5 {[%emt 0:04:07]} 12. g3 {[%emt 0:00:02] Prevents Nf4} f5 {[%emt 0:00:44]} 13. exf5 {[%emt 0:00:49]} gxf5 {[%emt 0:00:31]} (13... Bxf5 $14 14. Bxf5 Rxf5) 14. Nh4 {[%emt 0:02:05]} Nf4 {[%emt 0:00:39]} 15. gxf4 {[%emt 0:01:00]} (15. Qd2 $14) 15... Qxh4 {[%emt 0:00:13]} (15... exf4 $11 {remains equal.} 16. Qh5 (16. Bxc5 Re8 $17) 16... fxe3 17. fxe3 Qe8 18. Qxe8 Rxe8) 16. Rg1 {[%emt 0:00:16]} (16. fxe5 $16 {aiming for e6.} Bxe5 17. Rg1+ Kh8 18. O-O-O) 16... Kh8 {[%emt 0:01:37] [#]} (16... exf4 $2 17. Bd4 $18) (16... e4 $1 $14) 17. Rxg7 $1 $18 {[%emt 0:01:09][%mdl 512]} Kxg7 {[%emt 0:00:10] [#]} 18. fxe5 {[%emt 0:00:16]} dxe5 {[%emt 0:04:46]} (18... Qxh3 $2 19. O-O-O Kf7 20. e6+ Nxe6 21. dxe6+ Bxe6 22. Qd2 $18) 19. Bxc5 {[%emt 0:00:03]} (19. O-O-O $142 {Rg1+ would now be deadly.} Ne4 20. Nb5) 19... bxc5 $16 {[%emt 0:00:01]} 20. Qxe5+ {[%emt 0:00:02]} Qf6 {[%emt 0:00:05] Black is on the road to losing.} (20... Kf7 $14 21. Qxc7+ (21. O-O-O Qe7 $16) 21... Qe7+ 22. Qxe7+ Kxe7) 21. Qxc7+ {[%emt 0:00:09]} Rf7 {[%emt 0:00:02]} 22. Qg3+ {[%emt 0:00:29]} (22. Qxc5 Re7+ 23. Kd1 Ba6 $14) 22... Kh8 {[%emt 0:00:31]} (22... Qg6 $142) 23. O-O-O {[%emt 0:00:30] White is more active.} Bd7 {[%emt 0:00:01]} 24. d6 {[%emt 0:00:39][%cal Bd5d6,Bd6d7][%mdl 32]} Rb8 {[%emt 0:00:10]} (24... Rg7 $16 25. Qe3 Rc8) 25. Qe3 $18 {[%emt 0:00:43]} Be6 {[%emt 0:00:44]} (25... Rc8 $142 26. Rd5 h6) 26. Qxc5 {[%emt 0:00:21]} Rfb7 {[%emt 0:00:31]} 27. Qd4 {[%emt 0:00:02]} ({But not} 27. Qxa5 Bxc4 28. Qxf5 (28. Bxf5 Rxb2 29. f4 Rxa2 $11) 28... Qxf5 29. Bxf5 Kg7 $18) 27... Qxd4 {[%emt 0:00:13]} 28. Rxd4 {[%emt 0:00:01]} Rxb2 {[%emt 0:00:12]} (28... Kg7 $142 29. b3 (29. c5 Rc8 $18) 29... Kf6) 29. d7 {[%emt 0:00:02]} Rxc2+ {[%emt 0:00:21]} 30. Kxc2 {[%emt 0:00:01][%mdl 4096] Endgame. KRB-KRN} Rd8 {[%emt 0:00:00]} 31. c5 {[%emt 0:00:21]} Rxd7 {[%emt 0:00:04]} 32. Rxd7 {[%emt 0:00:05]} Bxd7 {[%emt 0:00:02] KB-KN} 33. Ne2 {[%emt 0:00:20]} Kg7 {[%emt 0:00:04]} 34. Kc3 {[%emt 0:00:32]} Kf6 {[%emt 0:00:02]} 35. Kd4 {[%emt 0:00:02]} Bc6 {[%emt 0:00:06]} 36. h4 {[%emt 0:00:10]} Bb7 {[%emt 0:00:21]} 37. Nf4 {[%emt 0:00:05]} Bc6 {[%emt 0:00:01]} 38. a3 {[%emt 0:00:26]} Bb7 {[%emt 0:00:08]} 39. Nd5+ {[%emt 0:00:01]} Kg6 $2 {[%emt 0:00:05]} (39... Ke6 40. Nf4+ Kf6) 40. Ne7+ {[%emt 0:00:07]} Kh5 {[%emt 0:00:05]} 41. Nxf5 {[%emt 0:00:11] White threatens f4 and mate.} Kg4 {[%emt 0:00:01]} 42. Ke5 {[%emt 0:00:05] Intending f4 and mate.} h5 {[%emt 0:00:06]} 43. f4 {[%emt 0:00:29][%cal Bf2f4,Bf4f5,Bf5f6][%mdl 32] White mates.} Bc8 {[%emt 0:00:25]} 44. Ne7 {[%emt 0:00:04]} Bd7 {[%emt 0:00:01]} 45. f5 {[%emt 0:00:07]} Kxh4 {[%emt 0:00:03]} 46. f6 {[%emt 0:00:02]} Be8 {[%emt 0:00:00]} 47. c6 {[%emt 0:00:03]} Bxc6 {[%emt 0:00:08]} 48. Nxc6 {[%emt 0:00:02] Weighted Error Value: White=0.20 (precise) /Black=0.49.  Mistake:       	White=3     	Black=9      Inaccurate:     	White=3     	Black=2      OK:         	White=9     	Black=3      Best:        	White=3     	Black=3      Brilliant:      	White=1     	---} 1-0

[Event "Grand Prix Romania 1st Stage 2024"]
[Site "Bucuresti"]
[Date "2024.03.23"]
[Round "2.27"]
[White "Nedelcu, Ionut"]
[Black "Istratescu, Andrei"]
[Result "0-1"]
[ECO "A30"]
[WhiteElo "1932"]
[BlackElo "2374"]
[Annotator "RC"]
[PlyCount "92"]
[EventDate "2024.03.20"]
[EventType "swiss"]
[EventCountry "ROU"]
[SourceTitle "playchess.com"]
[Source "ChessBase"]
[SourceQuality "1"]
[TimeControl "900+5"]

1. d4 {[%emt 0:00:02]} g6 {[%emt 0:00:01]} 2. Nf3 {[%emt 0:00:03]} Bg7 {[%emt 0:00:02]} 3. g3 {[%emt 0:00:05]} c5 {[%emt 0:00:02]} 4. Bg2 {[%emt 0:00:03]} cxd4 {[%emt 0:00:01]} 5. Nxd4 {[%emt 0:00:02]} Nc6 {[%emt 0:00:00]} 6. Nxc6 {[%emt 0:00:29]} bxc6 {[%emt 0:00:02]} 7. c4 {[%emt 0:00:04]} Qa5+ {[%emt 0:01:21]} 8. Nd2 {[%emt 0:01:04]} Rb8 {[%emt 0:00:52]} 9. Qc2 {[%emt 0:00:05]} Nf6 {[%emt 0:01:13]} 10. O-O {[%emt 0:00:10]} O-O {[%emt 0:00:01]} 11. Nb3 {[%emt 0:02:58]} Qa4 {[%emt 0:00:16]} 12. Nd4 {[%emt 0:00:33]} Qxc2 {[%emt 0:00:15]} 13. Nxc2 {[%emt 0:00:02]} c5 {[%emt 0:00:06]} 14. Rb1 {[%emt 0:00:28]} d6 {[%emt 0:00:02]} 15. e4 {[%emt 0:00:16]} Be6 {[%emt 0:01:00]} 16. Ne3 {[%emt 0:00:22]} Ng4 {[%emt 0:00:02]} 17. Nxg4 {[%emt 0:00:21]} Bxg4 {[%emt 0:00:00]} 18. Re1 {[%emt 0:00:44]} Bd4 {[%emt 0:00:33]} 19. b3 {[%emt 0:00:20]} e5 {[%emt 0:00:24]} 20. Be3 {[%emt 0:00:29]} Rfe8 {[%emt 0:01:16]} 21. f3 {[%emt 0:00:18]} Bd7 {[%emt 0:00:16]} 22. Kf2 {[%emt 0:00:07]} a5 {[%emt 0:00:03]} 23. Bxd4 {[%emt 0:02:22]} exd4 {[%emt 0:00:14]} 24. a3 {[%emt 0:02:13]} Be6 {[%emt 0:01:54]} 25. Bf1 {[%emt 0:00:25]} Rb6 {[%emt 0:00:27]} 26. Bd3 {[%emt 0:01:19]} Reb8 {[%emt 0:00:05]} 27. Bc2 {[%emt 0:00:05]} a4 {[%emt 0:00:21]} 28. Ke2 {[%emt 0:01:21]} axb3 {[%emt 0:00:07]} 29. Bd3 {[%emt 0:00:00]} Ra8 {[%emt 0:00:17]} 30. Rb2 {[%emt 0:00:11]} Rxa3 {[%emt 0:00:03]} 31. Reb1 {[%emt 0:00:01]} Rb4 {[%emt 0:00:08]} 32. Kd2 {[%emt 0:00:11]} Bxc4 {[%emt 0:00:46]} 33. Bxc4 {[%emt 0:00:01]} Rxc4 {[%emt 0:00:01]} 34. Rxb3 {[%emt 0:00:01]} Rxb3 {[%emt 0:00:01]} 35. Rxb3 {[%emt 0:00:01]} Rc3 {[%emt 0:00:03]} 36. Rb6 {[%emt 0:00:22]} Rxf3 {[%emt 0:00:04]} 37. Rxd6 {[%emt 0:00:02]} Rf2+ {[%emt 0:00:08]} 38. Kd3 {[%emt 0:00:02]} Rxh2 {[%emt 0:00:01]} 39. Kc4 {[%emt 0:00:22]} Rg2 {[%emt 0:00:15]} 40. Kxc5 {[%emt 0:00:21]} Rxg3 {[%emt 0:00:01]} 41. Rxd4 {[%emt 0:00:00]} h5 {[%emt 0:00:02]} 42. e5 {[%emt 0:00:00]} Ra3 {[%emt 0:00:25]} 43. Kd6 {[%emt 0:00:00]} Ra6+ {[%emt 0:00:01]} 44. Kd7 {[%emt 0:00:08]} Re6 {[%emt 0:00:05]} 45. Re4 {[%emt 0:00:10]} g5 {[%emt 0:00:04]} 46. Re1 {[%emt 0:00:05]} Kg7 {[%emt 0:00:02]} 0-1

[Event "Grand Prix Romania 1st Stage 2024"]
[Site "Bucuresti"]
[Date "2024.03.23"]
[Round "2.28"]
[White "Tilicheev, Viacheslav"]
[Black "Contreras Gonzalez, Cristian David"]
[Result "1-0"]
[ECO "D15"]
[WhiteElo "2485"]
[BlackElo "1558"]
[Annotator "TA"]
[PlyCount "29"]
[EventDate "2024.03.20"]
[EventType "swiss"]
[EventCountry "ROU"]
[SourceTitle "playchess.com"]
[Source "ChessBase"]
[SourceQuality "1"]
[TimeControl "900+5"]

{[%evp 10,29,28,26,42,12,18,21,72,65,87,77,113,135,163,154,157,175,181,186,185,159]} 1. d4 {[%emt 0:00:03]} d5 {[%emt 0:00:02]} 2. c4 {[%emt 0:00:02]} c6 {[%emt 0:00:02]} 3. Nf3 {[%emt 0:00:02]} Nf6 {[%emt 0:00:02]} 4. e3 {[%emt 0:00:04]} a6 {[%emt 0:00:10]} 5. Nc3 {[%emt 0:01:07]} Bf5 {[%emt 0:00:18]} 6. Qb3 {[%emt 0:03:03]} b5 {[%emt 0:00:35]} 7. cxd5 {[%emt 0:00:02]} cxd5 {[%emt 0:02:16]} 8. a4 {[%emt 0:00:02]} bxa4 {[%emt 0:01:12]} (8... b4 $1 $11 {bleibt in der Remisbreite.} 9. Qxb4 Nc6) 9. Qb7 $16 {[%emt 0:00:25]} Nbd7 {[%emt 0:00:30]} 10. Nxd5 {[%emt 0:01:29] Weiß steht deutlich aktiver.} Qa5+ {[%emt 0:00:35]} 11. Nc3 {[%emt 0:00:06]} Rb8 {[%emt 0:01:52] Weiß steht deutlich besser.} 12. Qxa6 {[%emt 0:00:16]} Qxa6 {[%emt 0:01:05]} 13. Bxa6 {[%emt 0:00:02][%cal Bf1a6,Ba6b5,Bb5a4][%mdl 32]} Bc2 {[%emt 0:00:28]} 14. Bb5 {[%emt 0:00:58]} e6 {[%emt 0:00:30]} 15. Bxa4 {[%emt 0:00:51] Schwarz wurde aus der Eröffnung heraus überspielt.   Gewichteter Fehlerwert: Weiß=0.04 (makellos) /Schwarz=0.23 (präzise) .  Fehler:       	---       	Schwarz=1     Ungenau:       	Weiß=1     	Schwarz=1     OK:         	Weiß=6     	Schwarz=1     Bester:       	Weiß=1     	Schwarz=1} 1-0

[Event "Grand Prix Romania 1st Stage 2024"]
[Site "Bucuresti"]
[Date "2024.03.23"]
[Round "2.29"]
[White "Andries, Alf"]
[Black "Costachi, Mihnea"]
[Result "0-1"]
[ECO "C47"]
[WhiteElo "2040"]
[BlackElo "2470"]
[Annotator "TA"]
[PlyCount "93"]
[EventDate "2024.03.20"]
[EventType "swiss"]
[EventCountry "ROU"]
[SourceTitle "playchess.com"]
[Source "ChessBase"]
[SourceQuality "1"]
[TimeControl "900+5"]

{[%evp 23,93,-9,23,0,9,-7,12,2,0,12,3,0,0,0,0,-20,-14,-18,0,0,0,0,14,14,18,0,71,51,46,52,67,72,111,92,100,91,105,91,177,132,131,8,8,8,23,16,16,16,17,12,12,12,12,12,8,0,12,8,8,8,14,8,30,27,26,12,12,10,10,10,10,0]} 1. e4 {[%emt 0:00:01]} e5 {[%emt 0:00:02]} 2. Nf3 {[%emt 0:00:01]} Nc6 {[%emt 0:00:03]} 3. d4 {[%emt 0:00:02]} exd4 {[%emt 0:00:03]} 4. Nxd4 {[%emt 0:00:01]} Nf6 {[%emt 0:00:02]} 5. Nxc6 {[%emt 0:00:02]} bxc6 {[%emt 0:00:02]} 6. Nc3 {[%emt 0:00:01]} Bb4 {[%emt 0:00:35]} 7. Bd3 {[%emt 0:00:02]} d5 {[%emt 0:00:13]} 8. exd5 {[%emt 0:00:02]} O-O {[%emt 0:00:12]} 9. O-O {[%emt 0:00:02]} cxd5 {[%emt 0:00:06]} 10. Bg5 {[%emt 0:00:11]} c6 {[%emt 0:00:22]} 11. Na4 {[%emt 0:00:15]} h6 {[%emt 0:00:38]} 12. Bh4 {[%emt 0:00:05]} Be7 {[%emt 0:00:56]} 13. c4 {[%emt 0:00:29]} Be6 {[%emt 0:01:51]} 14. cxd5 {[%emt 0:00:54]} cxd5 {[%emt 0:00:18]} 15. Rc1 {[%emt 0:00:43]} Ne4 {[%emt 0:00:37]} 16. Bxe7 {[%emt 0:00:39]} Qxe7 {[%emt 0:00:02]} 17. Qe2 {[%emt 0:00:56]} Qb4 {[%emt 0:00:26]} 18. b3 {[%emt 0:01:58]} Rac8 {[%emt 0:00:21]} 19. Bxe4 {[%emt 0:00:33]} dxe4 {[%emt 0:00:19]} 20. Qe3 {[%emt 0:00:03]} a5 {[%emt 0:01:06]} 21. Nc5 {[%emt 0:02:57]} Bf5 {[%emt 0:03:18]} 22. h3 {[%emt 0:02:20]} Rfd8 {[%emt 0:00:26]} 23. Rc4 {[%emt 0:00:27]} Qb6 {[%emt 0:00:05]} 24. Rfc1 {[%emt 0:00:28][%cal Oe3f4,Bf1c1,Bc1c4,Bc4a4,Ba4a5,Ba5f5][%mdl 32]} Bg6 {[%emt 0:01:41]} (24... Rc6 $11 {keeps the balance.}) 25. Nxe4 {[%emt 0:01:16]} Qxe3 {[%emt 0:00:25]} 26. fxe3 {[%emt 0:00:03]} Rxc4 {[%emt 0:00:03]} 27. Rxc4 $16 {[%emt 0:00:03][%mdl 4096] Endgame. KRB-KRN} Re8 {[%emt 0:00:04] [#]} 28. Nc5 {[%emt 0:00:43]} Rxe3 {[%emt 0:00:02]} 29. Ra4 {[%emt 0:00:03]} f5 {[%emt 0:01:16]} 30. Rxa5 {[%emt 0:00:07]} Re2 {[%emt 0:00:29]} (30... Bf7 $16 {was worth a try.}) 31. b4 {[%emt 0:00:54]} Bf7 {[%emt 0:00:18] [#]} 32. Nd3 {[%emt 0:00:34]} ({Better is} 32. a4 $1 $16) 32... Bxa2 $11 {[%emt 0:00:07]} 33. Rxf5 {[%emt 0:00:26]} Bb1 {[%emt 0:00:18]} 34. Rd5 {[%emt 0:00:18]} Rd2 {[%emt 0:00:14]} 35. Nf4 {[%emt 0:00:01]} Rb2 {[%emt 0:00:02]} 36. Rd4 {[%emt 0:00:11]} Kf7 {[%emt 0:00:14]} 37. Nd5 {[%emt 0:00:05]} g5 {[%emt 0:00:36]} 38. Nc3 {[%emt 0:00:05]} Bf5 {[%emt 0:00:03]} 39. Nd1 {[%emt 0:00:12]} Rb1 {[%emt 0:00:05] ...Bc2 would now be deadly.} 40. Kf2 {[%emt 0:00:01]} Ke6 {[%emt 0:00:10]} 41. Ne3 {[%emt 0:00:02]} Bg6 {[%emt 0:00:08]} 42. Rc4 {[%emt 0:00:01]} Be8 {[%emt 0:00:05]} 43. Re4+ {[%emt 0:00:03]} Kf7 {[%emt 0:00:08]} 44. Nf5 {[%emt 0:00:08] Nd6+ is the strong threat.} Bc6 {[%emt 0:00:02] The position is equal.} 45. Re2 {[%emt 0:00:15]} h5 {[%emt 0:00:07]} 46. Nd4 {[%emt 0:00:05]} Ba4 {[%emt 0:00:05]} 47. b5 {[%emt 0:00:00][%mdl 32768] Weighted Error Value: White=0.12 (very precise) /Black=0.11 (very precise) .  Mistake:       	White=1     	Black=2      Inaccurate:     	---       	Black=1      OK:         	White=13    	Black=16     Best:        	White=1     	Black=1     . Loss on time!?} 0-1

[Event "Grand Prix Romania 1st Stage 2024"]
[Site "Bucuresti"]
[Date "2024.03.23"]
[Round "2.30"]
[White "Sofronie, Iulian"]
[Black "Gales, Randi-Ioan"]
[Result "0-1"]
[ECO "D00"]
[WhiteElo "2395"]
[BlackElo "2050"]
[Annotator "TA"]
[PlyCount "44"]
[EventDate "2024.03.20"]
[EventType "swiss"]
[EventCountry "ROU"]
[SourceTitle "playchess.com"]
[Source "ChessBase"]
[SourceQuality "1"]
[TimeControl "900+5"]

{[%evp 9,43,-6,14,-8,-6,0,0,-3,0,0,-4,0,18,0,10,0,51,50,63,49,175,158,234,229,231,-271,-275,-275,-285,-275,-288,-287,-289,-514,-508,-29999]} 1. d4 {[%emt 0:00:02]} d5 {[%emt 0:00:01]} 2. Bf4 {[%emt 0:00:02]} Nf6 {[%emt 0:00:04]} 3. e3 {[%emt 0:00:01]} e6 {[%emt 0:00:06]} 4. Nd2 {[%emt 0:00:05]} c5 {[%emt 0:00:05]} 5. c3 {[%emt 0:00:02]} Bd6 {[%emt 0:00:02]} 6. Bg3 {[%emt 0:00:02]} O-O {[%emt 0:00:08]} 7. Ngf3 {[%emt 0:00:11]} Qc7 {[%emt 0:00:07]} 8. dxc5 {[%emt 0:00:32] The position is equal.} Qxc5 {[%emt 0:00:03]} 9. Bd3 {[%emt 0:00:01]} Nbd7 {[%emt 0:01:34]} 10. e4 {[%emt 0:01:05]} Qc7 {[%emt 0:06:56]} 11. Qe2 {[%emt 0:00:58] Hoping for e5.} Bxg3 {[%emt 0:02:44]} 12. hxg3 {[%emt 0:00:02] Threatens to win with e5.} dxe4 {[%emt 0:00:18]} ({Black should play} 12... h6 $11) 13. Nxe4 $14 {[%emt 0:04:16]} b6 {[%emt 0:00:46] [#]} 14. g4 $1 {[%emt 0:01:03]} g6 {[%emt 0:02:06]} ({Better is} 14... Nxg4 $14 15. Nd4 Nh6) (14... Nd5 15. O-O-O) 15. Qd2 $18 {[%emt 0:03:49]} Bb7 {[%emt 0:01:01] [#]} (15... Nxg4 $16 16. Rh4 f5) 16. Qh6 $1 {[%emt 0:00:26]} Rfd8 {[%emt 0:00:14]} (16... Bxe4 17. Bxe4 Rfd8 18. Bxa8 $18) 17. g5 $4 {[%emt 0:00:13][%mdl 8192]} (17. Nxf6+ $18 Nxf6 18. g5) 17... Nxe4 $19 {[%emt 0:00:08]} (17... Bxe4 $2 18. gxf6 Nxf6 19. Bxe4 $18) 18. Rh4 {[%emt 0:01:08]} Ndc5 {[%emt 0:00:05]} 19. Bxe4 {[%emt 0:00:37]} Nxe4 {[%emt 0:00:01]} (19... Bxe4 20. Qxh7+ Kf8 21. Qh8+ Ke7 22. Qf6+ Kd7 (22... Kd6 $2 23. Ne5 $18) 23. Rxe4 Nxe4 24. Qxf7+ Kc6 25. Qxe6+ Nd6 26. Ne5+ Kb5 (26... Kb7 27. Qd5+ Ka6 28. Nc6 $11) 27. Qd5+ Ka6 28. Nc6 $11) 20. Qxh7+ {[%emt 0:02:10]} Kf8 21. g3 $2 {[%emt 0:00:00]} (21. Rxe4 Bxe4 22. Qh8+ Ke7 23. Qf6+ Ke8 24. Qh8+ Kd7 25. Qd4+ Bd5 26. c4) 21... Qc5 {[%emt 0:00:08][%csl Ge4][%cal Rc5f2]} ({Not} 21... Ke7 22. Rf4 Rf8 23. Nh4 $17) 22. Rf4 {[%emt 0:00:00]} (22. Rxe4 $19 Bxe4 23. Qh8+ Ke7 24. Qf6+ Ke8 25. Ne5) 22... Qxf2# {[%emt 0:00:03] Weighted Error Value: White=0.88/Black=0.27 (precise) .  Missed win:     	White=1     	---        Mistake:       	White=2     	Black=3      OK:         	White=6     	Black=5      Best:        	White=1     	Black=3      Strong:       	White=1     	---} 0-1